Cogmind - Beta 16 @@@ ROGUE MODE // 2025.10.22 @ 22:16:22 Player: Username Result: Destroyed by Y-45 Defender with Beam Rifle Performance ------------- Evolutions (2) 1000 Regions Visited (4) 800 Robots Destroyed (12) 60 Value Destroyed (424) 424 Prototype IDs (1) 20 Alien Tech Used (0) 0 Bonus (0) 0 TOTAL SCORE: 2304 Bonus ------- None Cogmind --------- Core Integrity 0/550 Matter 195/300 Energy 72/100 System Corruption 0% Temperature Cool (9) Movement Core (100) Ox1 Location -8/Materials Parts ------- > --- POWER (2) -------- (None) > --- PROPULSION (3) --- (None) > --- UTILITY (4) ------ Signal Interpreter ECM Suite > --- WEAPON (2) ------- Advanced Beam Rifle > --- INVENTORY (5) ---- Improved Heat Sink Medium Storage Unit Improved Targeting Computer Light EM Pulse Cannon Datajack Peak State ------------ > --- POWER ------------ Ion Engine Ion Engine > --- PROPULSION ------- Aluminum Leg Aluminum Leg Aluminum Leg > --- UTILITY ---------- Small Storage Unit High-capacity Battery Signal Interpreter Improved Targeting Computer > --- WEAPON ----------- Light EM Pulse Cannon Ion Cannon > --- INVENTORY -------- Armored Treads Improved Heat Sink Medium Storage Unit Signal Interpreter Improved Targeting Computer Small Laser Light EM Pulse Cannon Datajack [Rating: 16] Favorites ----------- Power Ion Engine Engine Ion Engine Propulsion Aluminum Leg Leg Aluminum Leg Flight Unit Cesium-ion Thruster Utility Small Storage Unit Device Improved Heat Sink Storage Small Storage Unit Processor Signal Interpreter Weapon Small Laser Energy Gun Small Laser Energy Cannon Light EM Pulse Cannon Ballistic Gun Light Assault Rifle Special Melee Weapon Datajack Build | -11 -10 -10 -9 -8 ------- Run | Yrd Mat Min Mat Mat Slots Evolved 4 | . . . 2 2 Power 1 | . . . . 1 Propulsion 1 | . . . . 1 Utility 2 | . . . 2 . Weapon . | . . . . . Parts Attached 29 | 6 5 . 11 7 Power 4 | 1 1 . 1 1 Engine 4 | 1 1 . 1 1 Core . | . . . . . Reactor . | . . . . . Propulsion 7 | 2 . . 3 2 Treads . | . . . . . Leg 5 | 2 . . 3 . Wheel . | . . . . . Hover . | . . . . . Flight 2 | . . . . 2 Utility 8 | 1 2 . 3 2 Device 2 | . 1 . . 1 Storage 3 | 1 . . 2 . Processor 3 | . 1 . 1 1 Hackware . | . . . . . Protection . | . . . . . Artifact . | . . . . . Weapon 10 | 2 2 . 4 2 Energy Gun 2 | . 1 . . 1 Energy Cannon 5 | . . . 4 1 Ballistic Gun 2 | 2 . . . . Ballistic Cannon . | . . . . . Launcher . | . . . . . Special Weapon . | . . . . . Impact Weapon . | . . . . . Slashing Weapon . | . . . . . Piercing Weapon . | . . . . . Special Melee Weapon 1 | . 1 . . . Unidentified Prototypes 1 | . . . . 1 Parts Lost 7 | . 1 . 1 5 Power 2 | . . . . 2 Propulsion 4 | . . . 1 3 Utility . | . . . . . Weapon 1 | . 1 . . . Highest Loss Streak 3 | . 1 . 1 3 To Critical Strikes . | . . . . . Average Backups 4 | 1 2 4 6 6 Power . | . 1 1 . . Propulsion . | . . . . . Utility 2 | . . 2 3 3 Weapon . | . . . . 1 Tool/Special . | . . . . . Unused Backups 2 | . . . . 2 Power . | . . . . . Propulsion 1 | . . . . 1 Utility 1 | . . . . 1 Weapon . | . . . . . Tool/Special . | . . . . . Average Slot Usage (%) 92 | . 96 100 96 72 Engine 12 | . 14 14 11 10 Leg 23 | . 28 28 21 17 Device 5 | . 8 . 4 5 Storage 15 | . 14 14 19 11 Processor 11 | . 2 14 17 12 Energy Gun 9 | . 9 14 10 3 Energy Cannon 4 | . . . 7 9 Ballistic Gun 8 | . 17 14 4 . Peak Build Rating 16 | 6 9 7 12 16 Average Rating 9 | 3 8 7 11 11 On Entrance 6 | . 6 7 7 12 Avg Prop Armor Cover (%) . | . . . . . Naked Turns 1 | . . . . 1 Heaviest Build 31 | 13 14 12 24 31 Greatest Support 30 | 20 20 20 20 30 Greatest Overweight (x) 1 | . . . 1 1 Average Overweight (x) . | . . . . . Largest Inventory Capacity 10 | 8 8 8 10 8 Average Capacity 7 | 6 8 8 8 6 Most Carried 8 | 5 4 4 8 8 Average Carried 4 | 1 2 4 6 6 Final Capacity 8 | 8 8 8 8 5 Final Carried 8 | 2 4 4 8 5 Class Distribution -------------------- 100% | Mutant Dominant Class ---------------- Mutant | -10/Materials Mutant | -10/Mines Mutant | -9/Materials Mutant | -8/Materials Resources | -11 -10 -10 -9 -8 ----------- Run | Yrd Mat Min Mat Mat Matter Collected 525 | 246 92 . 187 . Remotely . | . . . . . Salvage Created 559 | . 154 . 270 135 Parts 22 | . 3 . 14 5 Haulers Intercepted 1 | . . . 1 . Recyclers Shooed 2 | . 2 . . . Parts Field Recycled . | . . . . . Retrieved Matter . | . . . . . Parts Self-Destructed . | . . . . . Prevented . | . . . . . Parts Restored . | . . . . . Kills | -11 -10 -10 -9 -8 ------- Run | Yrd Mat Min Mat Mat Combat Hostiles Destroyed 10 | . 2 . 5 3 Guns 3 | . 2 . . 1 Cannons 4 | . . . 2 2 AOE 3 | . . . 3 . Classes Destroyed 6 | . 2 . 3 1 Hauler 1 | . . . 1 . Recycler 1 | . 1 . . . Swarmer 1 | . . . . 1 Grunt 4 | . 2 . 2 . Duelist 1 | . . . 1 . Sentry 4 | . . . 2 2 Best Kill Streak 3 | . 2 . 3 2 Combat Bots Only 3 | . 1 . 3 2 Max Kills in Single Turn 2 | . 1 . 2 1 Gunslinging . | . . . . . Exploded 2 | . . . 2 . Melee . | . . . . . Uniques/NPCs Destroyed . | . . . . . Combat | -11 -10 -10 -9 -8 -------- Run | Yrd Mat Min Mat Mat Hostile Shots Fired 171 | . 21 . 24 126 Missed 45 | . 4 . 7 34 Hits 126 | . 17 . 17 92 Melee 5 | . . . 5 . Projectile 121 | . 17 . 12 92 Critical Strikes 5 | . . . 2 3 Damage Taken 1774 | . 231 . 381 1162 Core 614 | . 12 . 46 556 Absorbed by Shields . | . . . . . Core Remaining (%) 94 | 100 . 95 88 . Volleys Fired 50 | . 24 . 16 10 Largest 2 | . 2 . 2 2 Hottest 116 | . 60 . 112 116 Shots Fired 93 | . 46 . 31 16 Gun 66 | . 46 . 16 4 Cannon 27 | . . . 15 12 Launcher . | . . . . . Special . | . . . . . Kinetic 37 | . 35 . 2 . Thermal 35 | . 11 . 14 10 Explosive . | . . . . . Electromagnetic 21 | . . . 15 6 Robot Hit Streak 9 | . 9 . 4 4 Robot Miss Streak 2 | . 2 . 2 2 Penetration Max . | . . . . . Secondary Targets . | . . . . . Shots Hit Robots 63 | . 34 . 20 9 Core Hits 23 | . 9 . 10 4 Critical Kills . | . . . . . Critical Parts Destroyed . | . . . . . Critical Strikes 2 | . . . . 2 Burn 2 | . . . . 2 Melee Attacks 2 | . 2 . . . Impact . | . . . . . Slashing . | . . . . . Piercing . | . . . . . Sneak Attacks 1 | . 1 . . . Combat Hostiles . | . . . . . Follow-up Attacks . | . . . . . Damage Inflicted 999 | . 328 . 488 183 Guns 491 | . 328 . 123 40 Cannons 330 | . . . 187 143 Explosions 175 | . . . 175 . Melee . | . . . . . Ramming 3 | . . . 3 . Kinetic 259 | . 250 . 9 . Thermal 454 | . 78 . 289 87 Explosive . | . . . . . Electromagnetic 283 | . . . 187 96 Impact . | . . . . . Slashing . | . . . . . Piercing . | . . . . . Highest Corruption . | . . . . . Average Corruption . | . . . . . Corruption Purged . | . . . . . Corruption Blocked . | . . . . . Overload Shots . | . . . . . Overflow Damage 5 | . . . 5 . Projectiles . | . . . . . Explosions 5 | . . . 5 . Melee . | . . . . . Knockbacks . | . . . . . Impact . | . . . . . Kinetic . | . . . . . Secondary . | . . . . . Self-Inflicted Damage 64 | . . . 64 . Shots 2 | . . . 2 . Rammed . | . . . . . Targets Rammed 1 | . . . 1 . Kicked 1 | . . . 1 . Crushed . | . . . . . Highest Temperature 258 | . 18 . 129 258 Average Temperature 71 | . 9 . 49 120 Received Heat Transfer 657 | . 132 . 93 432 Effects 3 | . . . . 3 Interference 3 | . . . . 3 Siege Activations . | . . . . . Martial Activations . | . . . . . Shielding Activations . | . . . . . Robots Disrupted . | . . . . . Combat Hostiles . | . . . . . Robots Corrupted . | . . . . . Combat Hostiles . | . . . . . Parts Fried . | . . . . . Impact Corruptions . | . . . . . Robots Melted . | . . . . . Combat Hostiles . | . . . . . Parts Melted 1 | . . . . 1 Heat Transferred 971 | . 175 . 500 296 Parts Sabotaged . | . . . . . Parts Stolen . | . . . . . Parts Stripped . | . . . . . Power Chain Reactions 2 | . . . 2 . Alert | -11 -10 -10 -9 -8 ------- Run | Yrd Mat Min Mat Mat Maximum Alert Level . | . . . . . Low Security (%) 100 | 100 100 100 100 100 Level 1 . | . . . . . Level 2 . | . . . . . Level 3 . | . . . . . Level 4 . | . . . . . Level 5 . | . . . . . High Security . | . . . . . Max Security . | . . . . . Peak Influence 80 | . 30 . 80 64 Initial 22 | . . . . 22 Average 13 | . 3 . 20 24 Influence Increases 354 | . 70 . 172 112 Destroy 0b10 Robot/C 200 | . 40 . 100 60 Destroy 0b10 Robot/NC 10 | . 5 . 5 . Destroy Leader 62 | . 10 . 32 20 Disable Machine 45 | . . . 30 15 Destroy Structure 7 | . . . 5 2 Lose Combat Pursuer 30 | . 15 . . 15 Influence Decreases 324 | . 70 . 118 136 Entered New Map 32 | . . . . 32 Time Decay 232 | . 60 . 108 64 Lost Part 60 | . 10 . 10 40 Squads Dispatched 2 | . . . 1 1 Investigation . | . . . . . Extermination . | . . . . . Reinforcement 2 | . . . 1 1 Assault . | . . . . . Garrison . | . . . . . Intercept . | . . . . . Searches Triggered . | . . . . . Construction Impeded 1 | . . . 1 . Haulers Reinforced . | . . . . . Active Scanning Responses . | . . . . . Cargo Convoy Interrupts . | . . . . . Stealth | -11 -10 -10 -9 -8 --------- Run | Yrd Mat Min Mat Mat Distress Signals 2 | . 1 . 1 . Communications Jammed . | . . . . . Distress Signals . | . . . . . Times Spotted 40 | . 9 2 9 20 Peak Tracking Total 9 | . 3 2 4 9 Tactical Retreats 5 | . 1 . . 4 ECM-based Alert Blocks 7 | . . . . 7 Traps | -11 -10 -10 -9 -8 ------- Run | Yrd Mat Min Mat Mat Traps Triggered 1 | . . . . 1 Indirectly . | . . . . . Trap Hack Attempts . | . . . . . Triggered . | . . . . . Disarmed . | . . . . . Reprogrammed . | . . . . . Reused . | . . . . . Traps Extracted . | . . . . . Installed . | . . . . . Triggered . | . . . . . Machines | -11 -10 -10 -9 -8 ---------- Run | Yrd Mat Min Mat Mat Machines Disabled 3 | . . . 2 1 Max in Single Turn 1 | . . . 1 1 Machines Repaired . | . . . . . Machines Dismantled . | . . . . . Machines Sabotaged . | . . . . . Overloaded Fab Kills . | . . . . . Hacking | -11 -10 -10 -9 -8 --------- Run | Yrd Mat Min Mat Mat Machines Accessed 2 | . 1 . 1 . Terminals 2 | . 1 . 1 . Fabricators . | . . . . . Repair Stations . | . . . . . Recycling Units . | . . . . . Scanalyzers . | . . . . . Garrison Access . | . . . . . Total Hacks 6 | . 2 . 4 . Successful 2 | . . . 2 . Failed 4 | . 2 . 2 . Catastrophic 1 | . 1 . . . Database Lockouts . | . . . . . Manual . | . . . . . Terminals 6 | . 2 . 4 . Fabricators . | . . . . . Repair Stations . | . . . . . Recycling Units . | . . . . . Scanalyzers . | . . . . . Garrison Access . | . . . . . Terminal Hacks 2 | . . . 2 . Investigation Status 1 | . . . 1 . Recall Investigation 1 | . . . 1 . Fabricator Hacks . | . . . . . Repair Station Hacks . | . . . . . Recycling Unit Hacks . | . . . . . Scanalyzer . | . . . . . Garrison Access Hacks . | . . . . . Unauthorized Hacks . | . . . . . Terminals . | . . . . . Fabricators . | . . . . . Repair Stations . | . . . . . Recycling Units . | . . . . . Scanalyzers . | . . . . . Garrison Access . | . . . . . Data Cores Recovered . | . . . . . Used . | . . . . . Hacking Detections 2 | . 1 . 1 . Full Trace Events . | . . . . . Feedback Events . | . . . . . Feedback Blocked . | . . . . . Robot Schematics Acquired . | . . . . . Robots Built . | . . . . . Authchips . | . . . . . Time . | . . . . . Total Robot Build Rating . | . . . . . Part Schematics Acquired . | . . . . . Parts Built . | . . . . . Authchips . | . . . . . Time . | . . . . . Total Part Build Rating . | . . . . . Part Studies Acquired . | . . . . . Parts Repaired . | . . . . . Time . | . . . . . Parts Recycled . | . . . . . Recycled Matter . | . . . . . Retrieved Matter . | . . . . . Retrieved Components . | . . . . . Parts Scanalyzed . | . . . . . Part Schematics Acquired . | . . . . . Parts Damaged . | . . . . . Bothacking | -11 -10 -10 -9 -8 ------------ Run | Yrd Mat Min Mat Mat Used RIF Installer . | . . . . . Robots Hacked 1 | . 1 . . . Non-combat 1 | . 1 . . . Combat . | . . . . . Robot Hacks Applied 1 | . 1 . . . no_distress 1 | . 1 . . . Relay Couplers Released . | . . . . . Fabnet Peak Effective % . | . . . . . Robots Rewired . | . . . . . Allies Hacked . | . . . . . Hacks Repelled . | . . . . . Allies | -11 -10 -10 -9 -8 -------- Run | Yrd Mat Min Mat Mat Total Allies . | . . . . . Largest Group . | . . . . . Highest-Rated Group . | . . . . . Highest-Rated Ally . | . . . . . Total Orders . | . . . . . Ally Attacks . | . . . . . Total Damage . | . . . . . Kills . | . . . . . Allies Corrupted . | . . . . . Allies Melted . | . . . . . Intel | -11 -10 -10 -9 -8 ------- Run | Yrd Mat Min Mat Mat Active Infowar (turns) 77 | . . . . 77 ECM 77 | . . . . 77 Robot Analysis Total . | . . . . . Derelict Logs Recovered 1 | . . 1 . . Drone Launches . | . . . . . Drone Recoveries . | . . . . . Exploration | -11 -10 -10 -9 -8 ------------- Run | Yrd Mat Min Mat Mat Turns Passed 1124 | 86 344 70 434 190 Spaces Moved 755 | 55 214 59 278 149 Core 79 | 15 . . . 64 Treads . | . . . . . Legs 660 | 40 214 59 278 69 Wheels . | . . . . . Hover . | . . . . . Flight 16 | . . . . 16 Fastest Speed 35 | 50 120 120 120 35 Average Speed 113 | 100 120 120 121 91 Slowest Speed 190 | 120 120 120 190 190 Overloaded Moves . | . . . . . Propulsion Burnouts . | . . . . . Robots Hopped . | . . . . . Potential Cave-ins . | . . . . . Cave-ins Triggered . | . . . . . Exploration Rate (%) 19 | 5 42 9 26 15 Regions Visited 4 Branch Regions 1 Pre-discovered Areas . | . . . . . Known Exits Taken 3 | . 1 1 1 . Unknown Exits Taken 1 | 1 . . . . Scrap Searched . | . . . . . Spaces Dug . | . . . . . Terrain Destroyed 5 | . . . 4 1 Melee . | . . . . . Projectile 1 | . . . . 1 AOE 4 | . . . 4 . Terrain Rammed . | . . . . . Walls Destroyed . | . . . . . Machines Disabled . | . . . . . Actions | -11 -10 -10 -9 -8 --------- Run | Yrd Mat Min Mat Mat Total 925 | 85 256 58 343 183 Wait 45 | 17 5 . 16 7 Move 751 | 54 213 58 277 149 Hop . | . . . . . Pick Up 26 | 8 4 . 12 2 Fast Attach 7 | . . . . 7 Attach 15 | 6 2 . 5 2 Detach 1 | . . . 1 . Swap 19 | . 6 . 10 3 Drop 8 | . . . 5 3 Fire 50 | . 24 . 16 10 Melee 2 | . 2 . . . Ram . | . . . . . Kick 1 | . . . 1 . Crush . | . . . . . Escape Stasis . | . . . . . Rewire . | . . . . . Trap . | . . . . . Miscellaneous . | . . . . . Route ------- -11/Scrapyard -10/Materials -10/Mines -9/Materials -8/Materials History --------- Turn | Location | Event 3 | -11/Scrapyard | Discovered new exit (range 16) 87 | -11/Scrapyard | Entered Materials 311 | -10/Materials | Build established: Mutant 346 | -10/Materials | Discovered new exit (range 14) 430 | -10/Materials | Identified exit to Mines 431 | -10/Materials | Entered Mines 455 | -10/Mines | Discovered new exit (range 6) 460 | -10/Mines | Identified exit to Materials 481 | -10/Mines | Learned 2 Materials zone layouts 501 | -10/Mines | Entered Materials 501 | -9/Materials | Evolved 2 slots: Utility x2 917 | -9/Materials | Discovered new exit (range 16) 933 | -9/Materials | Identified exit to Materials 935 | -9/Materials | Entered another Materials area 935 | -8/Materials | Evolved 2 slots: Power x1, Propulsion x1 1054 | -8/Materials | Released all parts (7) 1079 | -8/Materials | Core integrity fell below 50% 1082 | -8/Materials | Lost 3 parts (1p2n) 1101 | -8/Materials | Core integrity fell below 20% 1125 | -8/Materials | Destroyed by Y-45 Defender with Beam Rifle Last Messages --------------- 01078_ Penetrated by Slug. 01078_ R-06 Scavenger collects Ion Cannon. 01079_ Acquired Flight Unit. 01080_ R-06 Scavenger collects Sml. Laser. 01080_ U-05 Engineer lays Concrete. 01081_ Slug penetrates Wall. 01081_ Dropped Flight Unit. 01082_ Critical hit (Burn: +37). 01082_ Lgt. Ion Engine destroyed. 01091_ Acquired Cesium-ion Thruster. 01095_ Acquired Prototype Energy Gun. 01095_ Identified Adv. Beam Rifle. 01098_ Destroyed Flight Unit. 01098_ S-10 Pest suffers critical hit (Burn). 01103_ Processing Tank disabled. 01107_ S-10 Pest suffers critical hit (Burn). 01107_ Flight Unit melted. 01107_ S-10 Pest destroyed. 01110_ Cesium-ion Thruster destroyed. 01110_ Penetrated by Slug. Map ----- +----------------------------------------------------+ | | | | | | | | | | | | | | | | | | | | | | | | | | | | | | | | | ???????????###############???????????????????????? | | ???????????# #???????????????????????? | | ???????????# #???????????????????????? | | ???????????#% "" " """"" #?????????????%?????????? | | ???????????# """" """"" #????????????? ?????????? | | ???????????# """ " """"" #?????????????[?????????? | | ???????????# #?????##?????#%#????????? | | ???###############+####/##??? ##### %????????? | | ### / ????????? | | w u @ Y % ????????? | | ????########## ### ####### ????????? | | ?????????????#= # #??????? ##### ????????? | | ?????????????#% # ?###????############# #????????? | | ????##########[ #?????????# # # #????????? | | ????# # #?????????# # !!!# #????????? | | ????# # #?????????# # !!!# #????????? | | ????# # #?????????# + !! # #????????? | | ????# # #?????????# # # #????????? | | ????# " #?????????# # # #????????? | | ????# ! # #?????????# ####+###/#####????? | | ????# # #?????????# ## #????? | | ????# = # #?????????# ## #????? | | ????# # #?????????# ## #????? | | ????########## #?????????# ## #????? | | ?????????????# #?????????# ## #????? | | ?????????????# !####??????# ## #????? | | ?????????????# ######## ## #????? | | ??????######## ! ###+#########????? | | ?????# ?????????? | | ?????# =% " " ???????? | | ?????# = ???????? | | ?????##+############## ????????? | | ?????????????????????# ##########????????? | | ?????????????????????# #?????????????????? | +----------------------------------------------------+ Best States ------------- Heat Dissipation 42 Energy Generation 15 Energy Capacity 650 Matter Stores 300 Matter Capacity 300 Sight Range 16 Terrain Scan Density 10 ECM Strength 1 Evasion (%) 63 Targeting Accuracy 6 Item Schematics ----------------- None Robot Schematics ------------------ None Fabricated ------------ Nothing Repaired ---------- Nothing Studied --------- None Alien Tech Used ----------------- None Achievements -------------- DATA ERROR: Steam Global Achievement% For Emergencies Only I Have A Map? Junior Dev Live, Flee, And Rebuild Organ Harvest There's More Where That Came From Challenges ------------ None Game ------ Seed MicrowarpBiocellMatter Manual? 0 Play Time 00:28:35 Cumulative 32.3 hours Start 2025.10.22 @ 21:45:10 End 2025.10.22 @ 22:16:22 Sessions 1 Manual Loads 0 Difficulty Rogue Special Mode None Game No. 22 Rogue 22 Adventurer 0 Explorer 0 Win Type - Total 0 Types 0/0/0/0/0/0/0/0/0/0 Lore% 13 Gallery% 27 Achievement% 16 Wizard Run 0 Options --------- Layout 1 ASCII 0 Keyboard 0 Movement Mouse Keybinds 0 Fullscreen 1 Font 24/Smallcaps Map View 50x35 Zoom Use 0% Tactical HUD 1 Map Filters NONE Filters NONE Steam 1 RUN: d2ff3dbe-217f-4ef6-af54-970615c5b8a7